fUSD/lending_fUSD_20251211
["ID","MTS","AMOUNT","RATE_DAILY","PERIOD"]
[398169787,1765415441513,-150.0,0.00039856,7]
[398169788,1765415441521,-261.84747477,0.000399,120]
[398169789,1765415441532,-150.0,0.00039926,7]
[398169790,1765415441541,-150.84,0.0003994,2]
[398169791,1765415441550,-578.20924308,0.0003995,29]
[398169792,1765415441559,-500.0,0.0003995,29]
[398169793,1765415441568,-1000.0,0.0003995,29]
[398169794,1765415441577,-151.0,0.0003995,29]
[398169795,1765415441591,-500.0,0.0003995,29]
[398169796,1765415441600,-1000.0,0.0003995,29]
[398169797,1765415441610,-500.0,0.0003995,29]
[398169798,1765415441619,-1000.0,0.0003995,29]
[398169799,1765415441629,-500.0,0.0003995,29]
[398169800,1765415441639,-1000.0,0.0003995,29]
[398169801,1765415441650,-500.0,0.0003995,29]
[398169802,1765415441660,-1000.0,0.0003995,29]
[398169803,1765415441670,-245.47500971,0.0003995,29]
[398169804,1765415441679,-500.0,0.0003995,29]
[398169805,1765415441688,-500.0,0.0003995,29]
[398169806,1765415441701,-500.0,0.0003995,29]
[398169807,1765415441716,-500.0,0.0003995,29]
[398169808,1765415441727,-200.0,0.0003995,29]
[398169809,1765415441736,-500.0,0.0003995,29]
[398169810,1765415441746,-207.4,0.0003995,29]
[398169811,1765415441756,-200.0,0.0003995,29]
[398169812,1765415441765,-347.15889635,0.0003995,29]
[398169813,1765415441775,-500.0,0.0003995,29]
[398169814,1765415441784,-500.0,0.0003995,29]
[398169815,1765415441794,-500.0,0.0003995,29]
[398169816,1765415441803,-500.0,0.0003995,29]
[398169817,1765415441812,-500.0,0.0003995,29]
[398169818,1765415441822,-500.0,0.0003995,29]
[398169819,1765415441834,-500.0,0.0003995,29]
[398169820,1765415441845,-500.0,0.0003995,29]
[398169821,1765415441856,-500.0,0.0003995,29]
[398169822,1765415441865,-500.0,0.0003995,29]
[398169823,1765415441874,-500.0,0.0003995,29]
[398169824,1765415441884,-500.0,0.0003995,29]
[398169825,1765415441893,-500.0,0.0003995,29]
[398169826,1765415441905,-500.0,0.0003995,29]
[398169827,1765415441915,-500.0,0.0003995,29]
[398169828,1765415441924,-500.0,0.0003995,29]
[398169829,1765415441934,-456.80064685,0.0003995,29]
[398169830,1765415441944,-500.0,0.0003995,29]
[398169831,1765415441954,-500.0,0.0003995,29]
[398169832,1765415441964,-250.0,0.0003995,29]
[398169833,1765415441973,-250.0,0.0003995,29]
[398169834,1765415441982,-250.0,0.0003995,29]
[398169835,1765415441991,-567.0,0.0003995,29]
[398169836,1765415442000,-250.0,0.0003995,29]
[398169837,1765415442009,-567.0,0.0003995,29]
[398169838,1765415442019,-250.0,0.0003995,29]
[398169839,1765415442028,-250.0,0.0003995,29]
[398169840,1765415442037,-567.0,0.0003995,29]
[398169841,1765415442047,-250.0,0.0003995,29]
[398169842,1765415442056,-250.0,0.0003995,29]
[398169843,1765415442065,-567.0,0.0003995,29]
[398169844,1765415442074,-250.0,0.0003995,29]
[398169845,1765415442084,-250.0,0.0003995,29]
[398169846,1765415442094,-567.0,0.0003995,29]
[398169847,1765415442107,-250.0,0.0003995,29]
[398169848,1765415442127,-250.0,0.0003995,29]
[398169849,1765415442136,-567.0,0.0003995,29]
[398169850,1765415442146,-250.0,0.0003995,29]
[398169851,1765415442155,-250.0,0.0003995,29]
[398169852,1765415442164,-567.0,0.0003995,29]
[398169853,1765415442174,-250.0,0.0003995,29]
[398169854,1765415442183,-250.0,0.0003995,29]
[398169855,1765415442193,-567.0,0.0003995,29]
[398169856,1765415442202,-250.0,0.0003995,29]
[398169857,1765415442212,-567.0,0.0003995,29]
[398169858,1765415442221,-250.0,0.0003995,29]
[398169859,1765415442231,-567.0,0.0003995,29]
[398169860,1765415442239,-1000.0,0.0003995,29]
[398169861,1765415442249,-250.0,0.0003995,29]
[398169862,1765415442258,-567.0,0.0003995,29]
[398169863,1765415442267,-1000.0,0.0003995,29]
[398169864,1765415442275,-1000.0,0.0003995,29]
[398169865,1765415442284,-1000.0,0.0003995,29]
[398169866,1765415442293,-1000.0,0.0003995,29]
[398169867,1765415442302,-151.0,0.0003995,29]
[398169868,1765415442321,-151.0,0.0003995,29]
[398169869,1765415442332,-1000.0,0.0003995,29]
[398169870,1765415442341,-151.0,0.0003995,29]
[398169871,1765415442350,-1000.0,0.0003995,29]
[398169872,1765415442359,-151.0,0.0003995,29]
[398169873,1765415442369,-1000.0,0.0003995,29]
[398169874,1765415442379,-151.0,0.0003995,29]
[398169875,1765415442388,-1000.0,0.0003995,29]
[398169876,1765415442397,-151.0,0.0003995,29]
[398169877,1765415442408,-151.0,0.0003995,29]
[398169878,1765415442417,-151.0,0.0003995,29]
[398169879,1765415442426,-151.0,0.0003995,29]
[398169880,1765415442436,-151.0,0.0003995,29]
[398169881,1765415442446,-1000.0,0.0003995,29]
[398169882,1765415442455,-151.0,0.0003995,29]
[398169883,1765415442466,-1000.0,0.0003995,29]
[398169884,1765415442475,-574.12855637,0.0003995,29]
[398169885,1765415442484,-447.63894431,0.0003995,29]
[398169886,1765415442494,-150.0,0.00039962,7]
[398169887,1765415442504,-150.0,0.00039962,7]
[398169888,1765415442513,-150.0,0.00039962,7]
[398169889,1765415442522,-150.0,0.00039997,7]
[398169890,1765415442531,-500.0,0.00039999,31]
[398169891,1765415442541,-465.42551794,0.00039999,31]
[398169892,1765415442550,-500.0,0.00039999,31]
[398169893,1765415442560,-500.0,0.00039999,31]
[398169894,1765415442569,-166.68625031,0.00039999,31]
[398169895,1765415442579,-226.26097783,0.00039999,31]
[398169896,1765415442589,-500.0,0.00039999,31]
[398169897,1765415442599,-500.0,0.00039999,31]
[398169898,1765415442609,-170.989,0.00039999,31]
[398169899,1765415442619,-362.17348161,0.00039999,31]
[398169900,1765415442629,-500.0,0.00039999,31]
[398169901,1765415442639,-500.0,0.00039999,31]
[398169902,1765415442649,-187.37103332,0.00039999,15]
[398169903,1765415442659,-500.0,0.00039999,31]
[398169904,1765415442669,-266.58356176,0.00039999,31]
[398169905,1765415442678,-500.0,0.00039999,31]
[398169906,1765415442688,-500.0,0.00039999,31]
[398169907,1765415442698,-524.15455117,0.00039999,31]
[398169908,1765415442710,-366.83707601,0.00039999,31]
[398169909,1765415442720,-169.35050568,0.00039999,31]
[398169910,1765415442730,-3190.17001953,0.0004,120]
[398169911,1765415442739,-150.0,0.00040022,7]
[398169912,1765415442750,-150.0,0.00040068,7]
[398169913,1765415442760,-150.0,0.00040075,7]
[398169914,1765415442769,-500.0,0.00040108,2]
[398169915,1765415442778,-150.0,0.00040138,7]
[398169916,1765415442790,-150.0,0.00040209,7]
[398169917,1765415442799,-150.0,0.00040218,7]
[398169918,1765415442809,-150.0,0.00040263,7]
[398169919,1765415442818,-150.32,0.00040274,2]
[398169920,1765415442827,-150.0,0.0004028,7]
[398169921,1765415442837,-150.0,0.00040303,7]
[398169922,1765415442847,-150.0,0.0004035,7]
[398169923,1765415442861,-577.0,0.00040389,30]
[398169924,1765415442871,-150.0,0.00040401,7]
[398169925,1765415442880,-150.0,0.00040421,7]
[398169926,1765415442890,-150.84,0.00040453,2]
[398169927,1765415442899,-500.0,0.00040461,60]
[398169928,1765415442909,-500.0,0.00040461,60]
[398169929,1765415442919,-500.0,0.00040461,60]
[398169930,1765415442928,-500.0,0.00040461,60]
[398169931,1765415442938,-641.3407631,0.00040461,60]
[398169932,1765415442948,-500.0,0.00040461,30]
[398169933,1765415442957,-574.16201029,0.00040461,60]
[398169934,1765415442966,-3366.63505207,0.00040462,7]
[398169935,1765415442976,-150.0,0.00040474,7]
[398169936,1765415442986,-150.0,0.00040474,7]
[398169937,1765415442995,-150.0,0.00040492,7]
[398169938,1765415443005,-150.0,0.00040504,7]
[398169939,1765415443014,-150.0,0.00040531,7]
[398169940,1765415443023,-150.0,0.00040562,7]
[398169941,1765415443033,-150.0,0.00040573,2]
[398169942,1765415443043,-1000.0,0.000406,7]
[398169943,1765415443052,-150.0,0.00040633,7]
[398169944,1765415443062,-13318.60233491,0.00040641,15]
[398169945,1765415443071,-150.0,0.00040704,7]
[398169946,1765415443080,-150.0,0.0004073,7]
[398169947,1765415443090,-150.0,0.00040745,7]
[398169948,1765415443099,-150.0,0.00040759,7]
[398169949,1765415443109,-150.0,0.00040774,7]
[398169950,1765415443119,-577.0,0.00040805,30]
[398169951,1765415443128,-13318.60233491,0.00040818,15]
[398169952,1765415443139,-150.0,0.00040845,7]
[398169953,1765415443149,-276.19705613,0.00040894,120]
[398169954,1765415443158,-1032.99021847,0.00040904,2]
[398169955,1765415443167,-150.0,0.00040916,7]
[398169956,1765415443176,-219.03514384,0.00040986,7]
[398169957,1765415443186,-218.46730063,0.00040986,7]
[398169958,1765415443195,-208.07202476,0.00040986,7]
[398169959,1765415443205,-150.0,0.00040986,7]
[398169960,1765415443215,-150.0,0.00040986,7]
[398169961,1765415443224,-150.0,0.00040986,7]
[398169962,1765415443234,-150.0,0.00040986,7]
[398169963,1765415443243,-298.1441587,0.00040986,7]
[398169964,1765415443253,-204.04759298,0.00040986,7]
[398169966,1765415443262,-150.0,0.00040986,7]
[398169968,1765415443272,-151.0,0.00040991,14]
[398169969,1765415443281,-500.0,0.00040993,60]
[398169971,1765415443290,-464.50619349,0.00040993,60]
[398169973,1765415443299,-282.9143022,0.00040993,60]
[398169974,1765415443308,-577.87283872,0.00040993,60]
[398169975,1765415443317,-500.0,0.00040993,60]
[398169976,1765415443326,-553.94559675,0.00040993,60]
[398169977,1765415443335,-513.31358643,0.00040993,30]
[398169978,1765415443344,-500.0,0.00040993,2]
[398169979,1765415443353,-500.0,0.00040993,2]
[398169980,1765415443362,-500.0,0.00040993,2]
[398169981,1765415443371,-32392.69422947,0.00040994,33]
[398169982,1765415443380,-760000.0,0.00040994,2]
[398169983,1765415443389,-323.4,0.00040994,2]
[398169984,1765415443398,-1340.59119493,0.00040995,2]
[398169985,1765415443411,-13318.60233491,0.00040995,15]
[398169986,1765415443420,-319.57428111,0.00040995,8]
[398169987,1765415443429,-330.86457381,0.00040995,2]
[398169988,1765415443439,-5129.57953717,0.00040995,15]
[398169989,1765415443448,-437.91926614,0.00040995,2]
[398169990,1765415443457,-28358.2924,0.00040995,2]
[398169991,1765415443466,-5317.0489,0.00040995,2]
[398169992,1765415443475,-1000.0,0.00040995,2]
[398169993,1765415443484,-5000.0,0.00040995,120]
[398169994,1765415443493,-185555.0,0.00040995,120]
[398169995,1765415443502,-6760.8699,0.00040995,2]
[398169996,1765415443511,-10000.0,0.00040995,2]
[398169997,1765415443521,-168.0,0.00041,2]
[398169998,1765415443530,-25000.0,0.00041013,15]
[398169999,1765415443540,-25000.0,0.00041021,15]
[398170000,1765415443549,-25000.0,0.0004103,15]
[398170001,1765415443559,-25000.0,0.00041039,15]
[398170002,1765415443568,-25000.0,0.00041048,15]
[398170003,1765415443577,-500.0,0.00041053,2]
[398170004,1765415443587,-614.75316321,0.00041085,7]
[398170005,1765415443596,-54798.8935935,0.00041087,2]
[398170006,1765415443605,-151.0,0.00041092,14]
[398170007,1765415443615,-151.0,0.00041092,14]
[398170008,1765415443624,-698.75,0.00041094,30]
[398170009,1765415443633,-500.0,0.00041094,60]
[398170010,1765415443642,-500.0,0.00041094,60]
[398170011,1765415443652,-500.0,0.00041094,60]
[398170012,1765415443661,-500.0,0.00041094,45]
[398170013,1765415443671,-500.0,0.00041094,45]
[398170014,1765415443681,-500.0,0.00041094,45]
[398170015,1765415443690,-500.0,0.00041094,30]
[398170016,1765415443700,-500.0,0.00041094,30]
[398170017,1765415443713,-500.0,0.00041094,30]
[398170018,1765415443723,-224.83692442,0.00041095,31]
[398170019,1765415443732,-294.641087,0.00041095,60]
[398170020,1765415443743,-294.641087,0.00041095,60]
[398170021,1765415443751,-294.641087,0.00041095,60]
[398170022,1765415443761,-294.641087,0.00041095,60]
[398170023,1765415443769,-230.355792,0.00041095,60]
[398170024,1765415443779,-211.34155553,0.00041095,60]
[398170025,1765415443790,-152.04792506,0.00041095,60]
[398170026,1765415443800,-500.0,0.00041095,60]
[398170027,1765415443813,-500.0,0.00041095,60]
[398170028,1765415443822,-510.35250308,0.00041095,60]
[398170029,1765415443831,-500.57893122,0.00041095,60]
[398170030,1765415443841,-500.0,0.00041095,60]
[398170031,1765415443850,-165.458579,0.00041095,60]
[398170032,1765415443859,-500.0,0.00041095,60]
[398170033,1765415443869,-500.0,0.00041095,60]
[398170034,1765415443878,-500.0,0.00041095,60]
[398170035,1765415443887,-500.0,0.00041095,60]
[398170036,1765415443896,-500.0,0.00041095,60]
[398170037,1765415443905,-500.0,0.00041095,60]
[398170038,1765415443914,-500.0,0.00041095,60]
[398170039,1765415443923,-524.27166121,0.00041095,60]
[398170040,1765415443932,-500.0,0.00041095,60]
[398170041,1765415443941,-500.0,0.00041095,60]
[398170042,1765415443951,-500.0,0.00041095,60]
[398170043,1765415443960,-500.0,0.00041095,60]
[398170044,1765415443969,-500.0,0.00041095,60]
[398170045,1765415443978,-500.0,0.00041095,60]
[398170046,1765415443987,-500.0,0.00041095,60]
[398170047,1765415443996,-503.1401271,0.00041095,60]
[398170048,1765415444006,-500.0,0.00041095,60]
[398170049,1765415444014,-500.0,0.00041095,60]
[398170050,1765415444023,-500.0000151,0.00041095,60]
[398170051,1765415444032,-500.0,0.00041095,60]
[398170052,1765415444041,-500.0,0.00041095,60]
[398170053,1765415444050,-500.0,0.00041095,60]
[398170054,1765415444059,-500.0,0.00041095,60]
[398170055,1765415444068,-500.0,0.00041095,60]
[398170056,1765415444077,-500.0,0.00041095,60]
[398170057,1765415444087,-500.0,0.00041095,60]
[398170058,1765415444096,-500.0,0.00041095,60]
[398170059,1765415444105,-500.0,0.00041095,60]
[398170060,1765415444114,-500.0,0.00041095,60]
[398170062,1765415444298,-500.0,0.00041095,60]
[398170063,1765415444308,-500.0,0.00041095,60]
[398170064,1765415444317,-500.0,0.00041095,60]
[398170065,1765415444326,-500.0,0.00041095,60]
[398170066,1765415444335,-500.0,0.00041095,60]
[398170067,1765415444344,-500.0,0.00041095,60]
[398170068,1765415444353,-500.0,0.00041095,60]
[398170069,1765415444362,-500.0,0.00041095,60]
[398170070,1765415444372,-500.0,0.00041095,60]
[398170071,1765415444381,-500.0,0.00041095,60]
[398170072,1765415444391,-500.0,0.00041095,60]
[398170073,1765415444400,-506.51699322,0.00041095,60]
[398170074,1765415444409,-500.07546492,0.00041095,60]
[398170075,1765415444418,-500.0,0.00041095,60]
[398170076,1765415444428,-263.55603516,0.00041095,60]
[398170077,1765415444437,-500.0,0.00041095,60]
[398170078,1765415444446,-500.0,0.00041095,60]
[398170079,1765415444455,-501.44993203,0.00041095,60]
[398170080,1765415444464,-500.0,0.00041095,60]
[398170081,1765415444474,-502.14744046,0.00041095,60]
[398170082,1765415444483,-500.0,0.00041095,60]
[398170083,1765415444492,-500.0,0.00041095,60]
[398170084,1765415444501,-500.0,0.00041095,60]
[398170085,1765415444510,-579.83555784,0.00041095,60]
[398170086,1765415444519,-500.0,0.00041095,60]
[398170087,1765415444532,-500.0,0.00041095,60]
[398170088,1765415444541,-500.0,0.00041095,60]
[398170089,1765415444550,-502.0,0.00041095,60]
[398170090,1765415444560,-407.08606882,0.00041095,60]
[398170091,1765415444569,-500.0,0.00041095,60]
[398170092,1765415444578,-500.0,0.00041095,60]
[398170093,1765415444588,-500.0,0.00041095,60]
[398170094,1765415444597,-500.0,0.00041095,60]
[398170095,1765415444607,-502.16669694,0.00041095,60]
[398170096,1765415444616,-500.0,0.00041095,60]
[398170097,1765415444627,-500.0,0.00041095,60]
[398170098,1765415444637,-501.98053002,0.00041095,60]
[398170099,1765415444646,-500.0,0.00041095,60]
[398170100,1765415444655,-500.0,0.00041095,60]
[398170101,1765415444666,-504.427236,0.00041095,60]
[398170102,1765415444675,-506.25208626,0.00041095,60]
[398170103,1765415444684,-500.0,0.00041095,60]
[398170104,1765415444693,-500.0,0.00041095,60]
[398170105,1765415444704,-501.4156734,0.00041095,60]
[398170106,1765415444717,-500.0,0.00041095,60]
[398170107,1765415444726,-500.0,0.00041095,60]
[398170108,1765415444736,-500.0,0.00041095,60]
[398170109,1765415444745,-500.0,0.00041095,60]
[398170110,1765415444755,-500.0,0.00041095,60]
[398170111,1765415444764,-500.0,0.00041095,60]
[398170112,1765415444773,-500.0,0.00041095,60]
[398170113,1765415444783,-500.0,0.00041095,60]
[398170114,1765415444794,-500.0,0.00041095,60]
[398170115,1765415444803,-500.0,0.00041095,60]
[398170116,1765415444813,-500.0,0.00041095,60]
[398170117,1765415444822,-500.0,0.00041095,60]
[398170118,1765415444835,-500.0,0.00041095,60]
[398170119,1765415444844,-500.0,0.00041095,60]
[398170120,1765415444854,-500.0,0.00041095,60]
[398170121,1765415444863,-500.0,0.00041095,60]
[398170122,1765415444872,-500.0,0.00041095,60]
[398170123,1765415444882,-500.0,0.00041095,60]
[398170124,1765415444892,-500.0,0.00041095,60]
[398170125,1765415444901,-500.0,0.00041095,60]
[398170126,1765415444915,-500.0,0.00041095,60]
[398170127,1765415444924,-500.0,0.00041095,60]
[398170128,1765415444934,-500.0,0.00041095,60]
[398170129,1765415444944,-500.0,0.00041095,60]
[398170130,1765415444953,-500.0,0.00041095,60]
[398170131,1765415444963,-500.0,0.00041095,60]
[398170132,1765415444972,-340.87840016,0.00041095,60]
[398170133,1765415444981,-575.31657418,0.00041095,60]
[398170134,1765415444991,-500.0,0.00041095,60]
[398170135,1765415445000,-500.0,0.00041095,60]
[398170136,1765415445009,-500.0,0.00041095,60]
[398170137,1765415445018,-500.0,0.00041095,60]
[398170138,1765415445029,-500.0,0.00041095,60]
[398170139,1765415445039,-500.0,0.00041095,60]
[398170140,1765415445047,-500.0,0.00041095,60]
[398170141,1765415445056,-500.0,0.00041095,60]
[398170142,1765415445065,-500.0,0.00041095,60]
[398170143,1765415445074,-500.0,0.00041095,60]
[398170144,1765415445084,-500.0,0.00041095,60]
[398170145,1765415445093,-500.0,0.00041095,60]
[398170146,1765415445102,-500.0,0.00041095,60]
[398170147,1765415445111,-500.0,0.00041095,60]
[398170148,1765415445120,-416.81778015,0.00041095,60]
[398170149,1765415445129,-500.0,0.00041095,60]
[398170150,1765415445138,-500.0,0.00041095,60]
[398170151,1765415445146,-500.0,0.00041095,60]
[398170152,1765415445155,-1252.32533655,0.00041095,7]
[398170153,1765415445165,-200.0,0.00041095,7]
[398170154,1765415445174,-500.0,0.00041095,7]
[398170155,1765415445183,-500.0,0.00041095,60]
[398170156,1765415445192,-500.0,0.00041095,60]
[398170157,1765415445201,-500.0,0.00041095,60]
[398170158,1765415445210,-500.0,0.00041095,60]
[398170159,1765415445219,-500.0,0.00041095,60]
[398170160,1765415445228,-500.0,0.00041095,60]
[398170161,1765415445237,-500.0,0.00041095,60]
[398170162,1765415445246,-500.0,0.00041095,60]
[398170163,1765415445255,-500.0,0.00041095,60]
[398170164,1765415445264,-457.80343598,0.00041095,60]
[398170165,1765415445273,-500.0,0.00041095,60]
[398170166,1765415445282,-500.0,0.00041095,60]
[398170167,1765415445290,-500.0,0.00041095,60]
[398170168,1765415445299,-500.0,0.00041095,60]
[398170169,1765415445308,-638.62,0.00041095,60]
[398170170,1765415445317,-500.0,0.00041095,60]
[398170171,1765415445326,-500.0,0.00041095,60]
[398170172,1765415445336,-500.0,0.00041095,60]
[398170173,1765415445345,-500.0,0.00041095,60]
[398170174,1765415445354,-500.0,0.00041095,60]
[398170175,1765415445364,-500.0,0.00041095,60]
[398170176,1765415445373,-500.0,0.00041095,60]
[398170177,1765415445382,-500.0,0.00041095,60]
[398170178,1765415445392,-500.0,0.00041095,60]
[398170179,1765415445401,-500.0,0.00041095,60]
[398170180,1765415445410,-500.0,0.00041095,60]
[398170181,1765415445420,-500.0,0.00041095,60]
[398170182,1765415445430,-500.0,0.00041095,60]
[398170183,1765415445440,-500.0,0.00041095,60]
[398170184,1765415445450,-500.0,0.00041095,60]
[398170185,1765415445458,-507.57462283,0.00041095,60]
[398170186,1765415445468,-500.0,0.00041095,60]
[398170187,1765415445477,-500.0,0.00041095,60]
[398170188,1765415445486,-500.0,0.00041095,60]
[398170189,1765415445495,-500.0,0.00041095,60]
[398170190,1765415445504,-500.0,0.00041095,60]
[398170191,1765415445513,-500.0,0.00041095,60]
[398170192,1765415445522,-500.0,0.00041095,60]
[398170193,1765415445531,-500.0,0.00041095,60]
[398170194,1765415445540,-500.0,0.00041095,60]
[398170195,1765415445549,-500.0,0.00041095,60]
[398170196,1765415445559,-500.0,0.00041095,60]
[398170197,1765415445570,-500.0,0.00041095,60]
[398170198,1765415445580,-500.0,0.00041095,60]
[398170199,1765415445589,-500.0,0.00041095,60]
[398170200,1765415445598,-500.0,0.00041095,60]
[398170201,1765415445608,-500.0,0.00041095,60]
[398170202,1765415445618,-500.0,0.00041095,60]
[398170203,1765415445627,-500.0,0.00041095,60]
[398170204,1765415445636,-500.0,0.00041095,60]
[398170205,1765415445645,-647.59456637,0.00041095,60]
[398170206,1765415445654,-500.0,0.00041095,60]
[398170207,1765415445663,-291.92940486,0.00041095,60]
[398170208,1765415445672,-500.0,0.00041095,60]
[398170209,1765415445680,-500.0,0.00041095,60]
[398170210,1765415445691,-500.0,0.00041095,60]
[398170211,1765415445701,-500.0,0.00041095,60]
[398170212,1765415445714,-500.0,0.00041095,60]
[398170213,1765415445724,-538.04020552,0.00041095,60]
[398170214,1765415445734,-500.0,0.00041095,60]
[398170215,1765415445743,-500.0,0.00041095,60]
[398170216,1765415445753,-500.0,0.00041095,60]
[398170217,1765415445763,-500.0,0.00041095,60]
[398170218,1765415445772,-500.0,0.00041095,60]
[398170219,1765415445782,-500.0,0.00041095,60]
[398170220,1765415445791,-809.78,0.00041095,60]
[398170221,1765415445801,-809.78,0.00041095,60]
[398170222,1765415445810,-809.78,0.00041095,60]
[398170223,1765415445819,-809.78,0.00041095,60]
[398170224,1765415445829,-809.78,0.00041095,60]
[398170225,1765415445840,-500.0,0.00041095,60]
[398170226,1765415445850,-809.78,0.00041095,60]
[398170227,1765415445859,-500.0,0.00041095,60]
[398170228,1765415445869,-809.78,0.00041095,60]
[398170229,1765415445878,-500.0,0.00041095,60]
[398170230,1765415445888,-809.78,0.00041095,60]
[398170231,1765415445898,-809.78,0.00041095,60]
[398170232,1765415445907,-809.78,0.00041095,60]
[398170233,1765415445918,-500.0,0.00041095,60]
[398170234,1765415445927,-500.0,0.00041095,60]
[398170235,1765415445936,-500.0,0.00041095,60]
[398170236,1765415445947,-500.0,0.00041095,60]
[398170237,1765415445957,-552.38937385,0.00041095,60]
[398170238,1765415445967,-500.0,0.00041095,60]
[398170239,1765415445977,-500.0,0.00041095,60]
[398170240,1765415445986,-500.0,0.00041095,60]
[398170241,1765415445996,-500.0,0.00041095,60]
[398170242,1765415446005,-500.0,0.00041095,60]
[398170243,1765415446014,-501.36762,0.00041095,60]
[398170244,1765415446025,-500.0,0.00041095,60]
[398170245,1765415446034,-500.0,0.00041095,60]
[398170246,1765415446044,-500.0,0.00041095,60]
[398170247,1765415446053,-550.01737401,0.00041095,60]
[398170248,1765415446062,-500.0,0.00041095,60]
[398170249,1765415446070,-500.0,0.00041095,60]
[398170250,1765415446080,-500.0,0.00041095,60]
[398170251,1765415446093,-500.0,0.00041095,15]
[398170252,1765415446102,-500.0,0.00041095,60]
[398170253,1765415446111,-500.0,0.00041095,15]
[398170254,1765415446120,-500.0,0.00041095,60]
[398170255,1765415446129,-500.0,0.00041095,60]
[398170256,1765415446138,-500.0,0.00041095,60]
[398170257,1765415446147,-500.0,0.00041095,60]
[398170258,1765415446159,-500.0,0.00041095,60]
[398170259,1765415446170,-500.0,0.00041095,60]
[398170260,1765415446180,-500.0,0.00041095,60]
[398170261,1765415446194,-500.0,0.00041095,60]
[398170262,1765415446202,-500.0,0.00041095,60]
[398170263,1765415446211,-500.0,0.00041095,60]
[398170264,1765415446220,-500.0,0.00041095,60]
[398170265,1765415446230,-500.0,0.00041095,60]
[398170266,1765415446239,-500.0,0.00041095,60]
[398170267,1765415446248,-500.0,0.00041095,60]
[398170268,1765415446259,-259.72818982,0.00041095,60]
[398170269,1765415446268,-500.0,0.00041095,60]
[398170270,1765415446277,-500.0,0.00041095,60]
[398170271,1765415446286,-466.03633416,0.00041095,60]
[398170272,1765415446296,-500.0,0.00041095,60]
[398170273,1765415446305,-500.0,0.00041095,60]
[398170274,1765415446314,-500.0,0.00041095,60]
[398170275,1765415446324,-500.0,0.00041095,60]
[398170276,1765415446337,-500.0,0.00041095,60]
[398170277,1765415446346,-500.0,0.00041095,60]
[398170278,1765415446355,-500.0,0.00041095,60]
[398170279,1765415446364,-500.0,0.00041095,60]
[398170280,1765415446373,-500.0,0.00041095,60]
[398170281,1765415446382,-500.0,0.00041095,60]
[398170282,1765415446391,-500.0,0.00041095,60]
[398170283,1765415446400,-500.0,0.00041095,60]
[398170284,1765415446409,-500.0,0.00041095,60]
[398170285,1765415446417,-500.0,0.00041095,60]
[398170286,1765415446426,-500.0,0.00041095,60]
[398170287,1765415446435,-500.0,0.00041095,60]
[398170288,1765415446444,-500.0,0.00041095,60]
[398170289,1765415446453,-429.88776597,0.00041095,60]
[398170290,1765415446462,-500.0,0.00041095,60]
[398170291,1765415446471,-500.0,0.00041095,60]